[Event "IIFL Wealth 4th Mumbai GM"]
[Site "Mumbai"]
[Date "2019.01.06"]
[Round "8"]
[White "Snehal, Bhosale"]
[Black "Nepal, Prakash"]
[Result "1-0"]
[ECO "D12"]
[WhiteElo "2135"]
[BlackElo "1902"]
[Annotator "NA"]
[PlyCount "93"]
[EventDate "2018.12.30"]
[EventType "swiss"]
[EventCountry "IND"]
[SourceTitle "playchess.com"]
[Source "ChessBase"]
[SourceQuality "1"]
[TimeControl "40/5400+30:1800+30"]

1. d4 {[%emt 0:02:28]} d5 {[%emt 0:00:00]} 2. c4 {[%emt 0:00:22]} c6 {[%emt 0:00:00]} 3. Nf3 {[%emt 0:00:20]} Nf6 {[%emt 0:00:00]} 4. e3 {[%emt 0:00:06]} Bf5 {[%emt 0:01:24]} 5. Nc3 {[%emt 0:04:43]} e6 {[%emt 0:00:59]} 6. Be2 {[%emt 0:06:41]} Nbd7 {[%emt 0:01:24]} 7. O-O {[%emt 0:04:20]} Bd6 {[%emt 0:07:01]} 8. b3 {[%emt 0:01:36]} O-O {[%emt 0:03:13]} 9. Bb2 {[%emt 0:01:05]} Re8 {[%emt 0:00:25]} 10. Rc1 {[%emt 0:10:05]} Ne4 {[%emt 0:14:29]} 11. Nxe4 {[%emt 0:10:37]} Bxe4 {[%emt 0:03:26]} 12. Nd2 {[%emt 0:06:45]} Bg6 {[%emt 0:10:07]} 13. Bf3 {[%emt 0:00:45]} Nf6 {[%emt 0:01:16]} 14. g3 {[%emt 0:06:13]} Bc7 {[%emt 0:06:49]} 15. Qe2 {[%emt 0:02:25]} e5 {[%emt 0:12:01]} 16. dxe5 {[%emt 0:04:33]} Bxe5 {[%emt 0:00:21]} 17. Bxe5 {[%emt 0:00:32]} Rxe5 {[%emt 0:00:02]} 18. cxd5 {[%emt 0:03:51]} Nxd5 {[%emt 0:00:53]} 19. Nc4 {[%emt 0:02:16]} Re7 {[%emt 0:00:32]} 20. Rfd1 {[%emt 0:01:42]} Be4 {[%emt 0:07:24]} 21. Bxe4 {[%emt 0:08:12]} Rxe4 {[%emt 0:00:27]} 22. Qc2 {[%emt 0:01:13]} Qe7 {[%emt 0:02:11]} 23. f3 {[%emt 0:01:58]} Re6 {[%emt 0:00:28]} 24. e4 {[%emt 0:00:14]} Nb6 {[%emt 0:05:31]} 25. Ne3 {[%emt 0:01:52]} Qf6 {[%emt 0:02:16]} 26. Kg2 {[%emt 0:05:45]} h5 {[%emt 0:00:31]} 27. a4 {[%emt 0:01:52]} Rd8 {[%emt 0:05:38]} 28. a5 {[%emt 0:02:48]} Nd7 {[%emt 0:00:37]} 29. f4 {[%emt 0:04:09]} b6 {[%emt 0:10:05]} 30. e5 {[%emt 0:01:27]} Qe7 {[%emt 0:00:28]} 31. Nf5 {[%emt 0:00:31]} Qe8 {[%emt 0:03:13]} 32. Nd4 {[%emt 0:00:37]} Rg6 {[%emt 0:01:12]} 33. Nxc6 {[%emt 0:00:38]} Ra8 {[%emt 0:00:17]} 34. Qe4 {[%emt 0:00:29]} Nc5 {[%emt 0:01:40]} 35. Ne7+ {[%emt 0:01:43]} Kh7 {[%emt 0:00:27]} 36. Rxc5 {[%emt 0:00:23]} Qxe7 {[%emt 0:00:06]} 37. Rcd5 {[%emt 0:01:37]} Rf8 {[%emt 0:00:53]} 38. Rd6 {[%emt 0:01:26]} bxa5 {[%emt 0:00:34]} 39. Qd3 {[%emt 0:00:35]} Qb7+ {[%emt 0:00:23]} 40. Kg1 {[%emt 0:00:00]} f5 {[%emt 0:00:00]} 41. Rxg6 {[%emt 0:02:11]} Kxg6 {[%emt 0:00:48]} 42. Qd6+ {[%emt 0:00:11]} Kf7 {[%emt 0:00:46]} 43. e6+ {[%emt 0:01:27]} Kg8 {[%emt 0:00:21]} 44. e7 {[%emt 0:00:34]} Re8 {[%emt 0:00:56]} 45. Qe6+ {[%emt 0:00:09]} Kh7 {[%emt 0:01:59]} 46. Rd8 {[%emt 0:02:36]} Rxe7 {[%emt 0:13:49]} 47. Qg8+ {[%emt 0:01:23]} 1-0

[Event "IIFL Wealth 4th Mumbai GM"]
[Site "Mumbai"]
[Date "2019.01.06"]
[Round "8"]
[White "Soham Datar"]
[Black "Sarwat, Walaa"]
[Result "1-0"]
[ECO "A09"]
[WhiteElo "2134"]
[BlackElo "2276"]
[Annotator "NA"]
[PlyCount "151"]
[EventDate "2018.12.30"]
[EventType "swiss"]
[EventCountry "IND"]
[SourceTitle "playchess.com"]
[Source "ChessBase"]
[SourceQuality "1"]
[TimeControl "40/5400+30:1800+30"]

1. Nf3 {[%emt 0:00:00]} d5 {[%emt 0:01:13]} 2. c4 {[%emt 0:00:00]} dxc4 {[%emt 0:00:41]} 3. Qa4+ {[%emt 0:00:00]} Nd7 {[%emt 0:01:01]} 4. Qxc4 {[%emt 0:00:06]} Ngf6 {[%emt 0:00:51]} 5. d4 {[%emt 0:00:12]} a6 {[%emt 0:04:10]} 6. Bf4 {[%emt 0:03:23]} c5 {[%emt 0:01:04]} 7. dxc5 Qa5+ {[%emt 0:01:09]} 8. b4 {[%emt 0:05:46]} Qd8 {[%emt 0:01:50]} 9. Nc3 {[%emt 0:00:34]} e6 {[%emt 0:01:37]} 10. e4 {[%emt 0:00:34]} b5 {[%emt 0:00:45]} 11. Qb3 {[%emt 0:00:52]} Bb7 {[%emt 0:00:43]} 12. Qc2 Rc8 {[%emt 0:01:42]} 13. Rd1 {[%emt 0:03:18]} Bxc5 {[%emt 0:01:52]} 14. bxc5 {[%emt 0:00:05]} Rxc5 {[%emt 0:00:25]} 15. Qd2 {[%emt 0:03:08]} b4 {[%emt 0:01:08]} 16. Na4 {[%emt 0:00:24]} Nxe4 {[%emt 0:00:45]} 17. Qxd7+ {[%emt 0:06:08]} Qxd7 {[%emt 0:00:50]} 18. Rxd7 {[%emt 0:00:04]} Kxd7 {[%emt 0:01:04]} 19. Nxc5+ {[%emt 0:00:03]} Nxc5 {[%emt 0:00:21]} 20. Bc4 {[%emt 0:00:34]} Bd5 {[%emt 0:03:43]} 21. O-O {[%emt 0:04:13]} Bxc4 {[%emt 0:08:55]} 22. Ne5+ {[%emt 0:00:07]} Ke7 {[%emt 0:01:43]} 23. Nxc4 {[%emt 0:00:07]} Rc8 {[%emt 0:00:41]} 24. Bd6+ {[%emt 0:01:49]} Ke8 {[%emt 0:02:13]} 25. Be5 {[%emt 0:11:19]} Ne4 {[%emt 0:02:11]} 26. Ne3 {[%emt 0:07:34]} f6 {[%emt 0:00:58]} 27. Bb2 {[%emt 0:01:29]} Nc3 {[%emt 0:03:19]} 28. Bxc3 {[%emt 0:00:12]} Rxc3 {[%emt 0:00:19]} 29. Rd1 {[%emt 0:01:32]} a5 {[%emt 0:01:28]} 30. Kf1 {[%emt 0:00:04]} f5 {[%emt 0:01:59]} 31. Rd2 {[%emt 0:03:28]} f4 {[%emt 0:01:45]} 32. Nd1 {[%emt 0:00:05]} Ra3 {[%emt 0:00:55]} 33. f3 {[%emt 0:00:42]} g5 {[%emt 0:03:57]} 34. Ke2 {[%emt 0:01:01]} Kf7 {[%emt 0:00:45]} 35. Nf2 {[%emt 0:00:14]} h5 {[%emt 0:02:55]} 36. Nd3 {[%emt 0:01:43]} Kf6 {[%emt 0:00:55]} 37. h4 {[%emt 0:01:20]} e5 {[%emt 0:00:39]} 38. hxg5+ {[%emt 0:00:04]} Kxg5 {[%emt 0:00:22]} 39. Kf2 {[%emt 0:00:53]} Kf6 {[%emt 0:05:39]} 40. Nc5 {[%emt 0:00:00]} Ke7 {[%emt 0:00:00]} 41. Kg1 {[%emt 0:02:09]} Rc3 {[%emt 0:03:22]} 42. Ne4 {[%emt 0:00:16]} Ra3 {[%emt 0:09:16]} 43. Kh2 {[%emt 0:01:18]} Kf8 {[%emt 0:14:46]} 44. Nc5 {[%emt 0:05:23]} Re3 {[%emt 0:02:52]} 45. Rd8+ {[%emt 0:00:39]} Ke7 {[%emt 0:01:28]} 46. Rd7+ {[%emt 0:01:18]} Kf6 {[%emt 0:01:36]} 47. Rd6+ {[%emt 0:05:10]} Kf7 {[%emt 0:03:05]} 48. Rd2 {[%emt 0:02:33]} Rc3 {[%emt 0:02:59]} 49. Ne4 {[%emt 0:00:11]} Rc1 {[%emt 0:07:28]} 50. Rd5 {[%emt 0:00:52]} a4 {[%emt 0:00:17]} 51. Ra5 {[%emt 0:00:38]} a3 {[%emt 0:00:59]} 52. Rb5 {[%emt 0:01:11]} Rb1 {[%emt 0:02:39]} 53. Nd2 {[%emt 0:01:25]} Rb2 {[%emt 0:00:12]} 54. Nc4 {[%emt 0:00:12]} b3 {[%emt 0:01:14]} 55. axb3 {[%emt 0:00:15]} a2 {[%emt 0:06:02]} 56. Ra5 {[%emt 0:00:16]} Re2 {[%emt 0:00:21]} 57. Nd6+ {[%emt 0:02:01]} Kg6 {[%emt 0:00:54]} 58. Ne4 {[%emt 0:00:38]} Rc2 {[%emt 0:00:15]} 59. Ra6+ {[%emt 0:00:59]} Kg7 {[%emt 0:00:10]} 60. b4 {[%emt 0:00:08]} h4 {[%emt 0:01:04]} 61. b5 {[%emt 0:00:36]} Rb2 {[%emt 0:01:01]} 62. b6 {[%emt 0:00:18]} Kg6 {[%emt 0:02:43]} 63. b7+ {[%emt 0:00:04]} Kh5 {[%emt 0:00:22]} 64. Rxa2 {[%emt 0:00:24]} Rxb7 {[%emt 0:00:25]} 65. Ra5 {[%emt 0:00:06]} Re7 {[%emt 0:00:25]} 66. Kh3 {[%emt 0:00:05]} Re6 {[%emt 0:02:52]} 67. Ra8 {[%emt 0:00:41]} Rb6 {[%emt 0:01:01]} 68. Rh8+ {[%emt 0:00:25]} Kg6 {[%emt 0:00:18]} 69. Rxh4 {[%emt 0:00:24]} Rb2 {[%emt 0:00:34]} 70. Rg4+ {[%emt 0:00:25]} Kf5 {[%emt 0:00:30]} 71. Rg5+ {[%emt 0:00:15]} Ke6 {[%emt 0:00:01]} 72. Kh4 {[%emt 0:01:02]} Rb6 {[%emt 0:02:25]} 73. Kg4 {[%emt 0:01:01]} Rb2 {[%emt 0:00:13]} 74. Rg6+ {[%emt 0:00:07]} Kd5 {[%emt 0:00:27]} 75. Rd6+ {[%emt 0:00:24]} Kc4 {[%emt 0:00:22]} 76. Rd2 {[%emt 0:00:33] Kd5} 1-0

[Event "IIFL Wealth 4th Mumbai GM"]
[Site "Mumbai"]
[Date "2019.01.06"]
[Round "8"]
[White "Vatsal Singhania"]
[Black "Ziatdinov, Raset"]
[Result "1/2-1/2"]
[ECO "B32"]
[WhiteElo "2130"]
[BlackElo "2252"]
[Annotator "NA"]
[PlyCount "120"]
[EventDate "2018.12.30"]
[EventType "swiss"]
[EventCountry "IND"]
[SourceTitle "playchess.com"]
[Source "ChessBase"]
[SourceQuality "1"]
[TimeControl "40/5400+30:1800+30"]

1. e4 c5 2. Nf3 Nc6 3. d4 cxd4 4. Nxd4 e5 5. Nb5 a6 6. Nd6+ Bxd6 7. Qxd6 Qf6 8. Qd1 Qg6 9. Nc3 Nf6 10. Qd6 Ng4 {B32: Sicilian: Löwenthal and Kalashnikov Variations} (10... Qg4 11. Be3 Nxe4 12. Nxe4 Qxe4 13. O-O-O Qh4 14. f4 Qe7 15. fxe5 Qxd6 16. exd6 O-O 17. Bb6 Nd8 18. Bc4 {1-0 (38) Karshiev,S (2217)-Kholmirzaev,B (2355) Tashkent 2017}) 11. Qxg6 hxg6 12. Nd5 Rb8 13. h3 Nf6 14. Nxf6+ $146 ({Predecessor:} 14. Bd3 Nxd5 15. exd5 Nb4 16. Be4 d6 17. Bd2 a5 18. a3 {1-0 (50) Cupic,L (2062)-Jerkovic,M (1864) Topusko 2012}) 14... gxf6 15. Be3 b6 16. O-O-O Ke7 17. Rd3 f5 18. exf5 gxf5 19. g3 Nb4 20. Rb3 Nd5 21. Bc5+ d6 22. Ba3 Be6 23. Bg2 Nc7 24. Rd3 Nb5 25. Rhd1 Rhd8 26. Bc6 Nxa3 27. Rxa3 a5 28. Bd5 Bxd5 29. Rxd5 Ke6 30. Rb5 Rh8 31. h4 f4 32. gxf4 Rxh4 33. fxe5 dxe5 34. Kd2 Kf5 35. Ke2 Rc4 36. Raxa5 Re4+ 37. Kf1 Rd8 38. Rxb6 Rd1+ 39. Kg2 Rg4+ 40. Kf3 Rf4+ 41. Ke2 Rc1 42. f3 Rxc2+ 43. Ke3 f6 44. Raa6 Kg5 45. Ra8 Rh2 46. Rg8+ Kf5 47. Rf8 Kg6 48. Rg8+ Kf5 49. Rg3 Rd4 50. Rg1 $1 Rdd2 51. Re1 Rxb2 52. Rxb2 Rxb2 53. Ra1 Ke6 54. a4 Rb3+ 55. Kf2 Kd6 56. a5 Kc7 $11 57. a6 Kb8 58. a7+ Ka8 59. Ra5 Rc3 60. Ke2 Rb3 1/2-1/2

[Event "IIFL Wealth 4th Mumbai GM"]
[Site "Mumbai"]
[Date "2019.01.06"]
[Round "8"]
[White "Mahindrakar Indrajeet"]
[Black "Elgabry, Mohsen"]
[Result "1-0"]
[ECO "B06"]
[WhiteElo "2106"]
[BlackElo "2305"]
[Annotator "ChessBase"]
[PlyCount "123"]
[EventDate "2018.12.30"]
[EventType "swiss"]
[EventCountry "IND"]
[SourceTitle "playchess.com"]
[Source "ChessBase"]
[SourceQuality "1"]
[TimeControl "40/5400+30:1800+30"]

1. e4 {[%emt 0:07:34]} g6 {[%emt 0:00:26]} 2. d4 {[%emt 0:02:20]} Bg7 {[%emt 0:00:07]} 3. Nf3 {[%emt 0:00:23]} d6 {[%emt 0:00:19]} 4. Bc4 {[%emt 0:00:39]} Nf6 {[%emt 0:00:18]} 5. Qe2 {[%emt 0:01:06]} c6 {[%emt 0:00:47]} 6. Bb3 {[%emt 0:01:06]} O-O {[%emt 0:00:58]} 7. h3 {[%emt 0:00:59]} a5 {[%emt 0:00:20]} 8. a4 {[%emt 0:06:54]} Nbd7 {[%emt 0:01:01]} 9. O-O {[%emt 0:01:53]} e6 {[%emt 0:01:24]} 10. Re1 {[%emt 0:08:10]} d5 {[%emt 0:00:30]} 11. Nbd2 {[%emt 0:03:18]} b6 {[%emt 0:00:53]} 12. e5 {[%emt 0:03:15]} Ne8 {[%emt 0:00:53]} 13. Nf1 {[%emt 0:01:25]} Ba6 {[%emt 0:00:08]} 14. Qd1 {[%emt 0:00:37]} Bxf1 {[%emt 0:00:27]} 15. Rxf1 {[%emt 0:01:10]} f5 {[%emt 0:04:49]} 16. Bg5 {[%emt 0:09:35]} Qb8 {[%emt 0:00:23]} 17. c4 {[%emt 0:01:26]} Qb7 {[%emt 0:03:41]} 18. cxd5 {[%emt 0:03:55]} cxd5 {[%emt 0:00:02]} 19. Qd2 {[%emt 0:02:18]} Nc7 {[%emt 0:01:21]} 20. Rfc1 {[%emt 0:05:37]} Rfc8 {[%emt 0:00:12]} 21. Rc3 {[%emt 0:02:09]} Bf8 {[%emt 0:04:57]} 22. Rc2 {[%emt 0:02:13]} Na6 {[%emt 0:00:14]} 23. Rac1 {[%emt 0:01:44]} Nb4 {[%emt 0:02:17]} 24. Rc3 {[%emt 0:01:24]} Rc6 {[%emt 0:08:31]} 25. h4 {[%emt 0:03:49]} Rac8 {[%emt 0:00:10]} 26. h5 {[%emt 0:01:00]} Na6 {[%emt 0:02:21]} 27. hxg6 {[%emt 0:02:45]} hxg6 {[%emt 0:00:06]} 28. Qe2 {[%emt 0:03:16]} Ndb8 {[%emt 0:02:10]} 29. Nh4 {[%emt 0:02:46]} Rxc3 {[%emt 0:01:51]} 30. bxc3 {[%emt 0:00:43]} Qh7 {[%emt 0:02:42]} 31. Qe3 {[%emt 0:10:48]} Rc6 {[%emt 0:11:08]} 32. g3 {[%emt 0:01:31]} Nc7 {[%emt 0:01:07]} 33. c4 {[%emt 0:01:30]} Nba6 {[%emt 0:00:19]} 34. cxd5 {[%emt 0:01:02]} Rxc1+ {[%emt 0:00:07]} 35. Qxc1 {[%emt 0:00:16]} exd5 {[%emt 0:01:42]} 36. Qc6 {[%emt 0:00:37]} Qf7 {[%emt 0:00:50]} 37. Qxb6 {[%emt 0:03:05]} Nb4 {[%emt 0:01:38]} 38. Qxa5 {[%emt 0:02:26]} Ne6 {[%emt 0:00:26]} 39. Nf3 {[%emt 0:00:45]} f4 {[%emt 0:02:37]} 40. g4 {[%emt 0:00:00]} Nxg5 {[%emt 0:00:00]} 41. Nxg5 {[%emt 0:01:58]} Qd7 {[%emt 0:14:45]} 42. f3 {[%emt 0:12:17]} Be7 {[%emt 0:00:32]} 43. Ne4 {[%emt 0:01:05]} Qc6 {[%emt 0:05:23]} 44. Nc5 {[%emt 0:02:58]} Bxc5 {[%emt 0:00:01]} 45. dxc5 {[%emt 0:01:10]} Na6 {[%emt 0:02:45]} 46. Qd8+ {[%emt 0:01:52]} Kg7 {[%emt 0:00:12]} 47. Qxd5 {[%emt 0:00:29]} Qxc5+ {[%emt 0:00:59]} 48. Qxc5 {[%emt 0:02:00]} Nxc5 {[%emt 0:00:01]} 49. a5 {[%emt 0:01:16]} Nxb3 {[%emt 0:00:07]} 50. a6 {[%emt 0:00:02]} Nd4 {[%emt 0:00:13]} 51. a7 {[%emt 0:00:16]} Nxf3+ {[%emt 0:00:02]} 52. Kf2 {[%emt 0:01:57]} Nxe5 {[%emt 0:00:01]} 53. a8=Q {[%emt 0:00:23]} Kf6 {[%emt 0:04:34]} 54. Qh8+ {[%emt 0:01:00]} Ke6 {[%emt 0:00:02]} 55. g5 {[%emt 0:00:21]} Kf5 {[%emt 0:00:03]} 56. Ke2 {[%emt 0:02:06]} Ke4 {[%emt 0:00:27]} 57. Qh1+ {[%emt 0:01:11]} Kf5 {[%emt 0:00:01]} 58. Qd5 {[%emt 0:00:27]} f3+ {[%emt 0:00:46]} 59. Ke3 {[%emt 0:00:36]} f2 {[%emt 0:00:05]} 60. Kxf2 {[%emt 0:00:28]} Kf4 {[%emt 0:00:01]} 61. Qd4+ {[%emt 0:00:49]} Kf5 {[%emt 0:00:11]} 62. Kg3 {[%emt 0:00:30]} 1-0

[Event "IIFL Wealth 4th Mumbai GM"]
[Site "Mumbai"]
[Date "2019.01.06"]
[Round "8"]
[White "Kavinda, Akila"]
[Black "Balasubramaniam H"]
[Result "1-0"]
[ECO "A05"]
[WhiteElo "2092"]
[BlackElo "2270"]
[Annotator "NA"]
[PlyCount "69"]
[EventDate "2018.12.30"]
[EventType "swiss"]
[EventCountry "IND"]
[SourceTitle "playchess.com"]
[Source "ChessBase"]
[SourceQuality "1"]
[TimeControl "40/5400+30:1800+30"]

1. Nf3 {[%emt 0:00:00]} Nf6 {[%emt 0:05:30]} 2. c4 {[%emt 0:00:21]} g6 {[%emt 0:00:48]} 3. b3 {[%emt 0:00:30]} Bg7 {[%emt 0:00:07]} 4. Bb2 {[%emt 0:00:05]} O-O {[%emt 0:00:16]} 5. g3 {[%emt 0:00:36]} d6 {[%emt 0:00:33]} 6. d4 {[%emt 0:00:08]} e5 {[%emt 0:01:26]} 7. dxe5 {[%emt 0:00:38]} Nfd7 {[%emt 0:00:15]} 8. Bg2 {[%emt 0:05:06]} dxe5 {[%emt 0:01:38]} 9. Nc3 {[%emt 0:04:31]} Nc6 {[%emt 0:05:58]} 10. Qc1 {[%emt 0:08:26]} Nd4 {[%emt 0:01:43]} 11. O-O {[%emt 0:04:59]} Nxf3+ {[%emt 0:09:23]} 12. Bxf3 {[%emt 0:00:22]} Re8 {[%emt 0:14:56]} 13. Rd1 {[%emt 0:02:22]} f5 {[%emt 0:01:21]} 14. e4 {[%emt 0:30:42]} c6 {[%emt 0:00:32]} 15. Ba3 {[%emt 0:02:16]} Qf6 {[%emt 0:06:13]} 16. Rd6 {[%emt 0:12:20]} Qf7 {[%emt 0:03:08]} 17. exf5 {[%emt 0:07:03]} gxf5 {[%emt 0:00:46]} 18. Qg5 {[%emt 0:03:22]} Nf6 {[%emt 0:01:46]} 19. Rad1 {[%emt 0:01:19]} h6 {[%emt 0:04:28]} 20. Qh4 {[%emt 0:00:38]} Be6 {[%emt 0:00:19]} 21. Bc1 {[%emt 0:00:35]} Qg6 {[%emt 0:01:06]} 22. Na4 {[%emt 0:02:04]} Bf8 {[%emt 0:01:39]} 23. Nc5 {[%emt 0:01:09]} Bxd6 {[%emt 0:01:44]} 24. Rxd6 {[%emt 0:00:04]} Kf7 {[%emt 0:02:20]} 25. Nxb7 {[%emt 0:03:59]} e4 {[%emt 0:08:26]} 26. Be2 {[%emt 0:00:14]} Rab8 {[%emt 0:01:22]} 27. Na5 {[%emt 0:00:57]} e3 {[%emt 0:15:16]} 28. Bxe3 {[%emt 0:01:15]} f4 {[%emt 0:01:32]} 29. Qxf4 {[%emt 0:00:33]} Rbd8 {[%emt 0:01:58]} 30. Rxd8 {[%emt 0:04:05]} Rxd8 {[%emt 0:00:01]} 31. Nxc6 {[%emt 0:00:15]} Qb1+ {[%emt 0:00:40]} 32. Kg2 {[%emt 0:00:04]} Rf8 {[%emt 0:00:38]} 33. Bh5+ {[%emt 0:01:17]} Kg8 {[%emt 0:00:45]} 34. Ne7+ {[%emt 0:00:05]} Kh8 {[%emt 0:00:04]} 35. Qxh6+ {[%emt 0:00:24]} 1-0

[Event "IIFL Wealth 4th Mumbai GM"]
[Site "Mumbai"]
[Date "2019.01.06"]
[Round "8"]
[White "Nayem, Haque"]
[Black "Arya Nirag Shah"]
[Result "1/2-1/2"]
[ECO "B50"]
[WhiteElo "2083"]
[BlackElo "1812"]
[Annotator "NA"]
[PlyCount "56"]
[EventDate "2018.12.30"]
[EventType "swiss"]
[EventCountry "IND"]
[SourceTitle "playchess.com"]
[Source "ChessBase"]
[SourceQuality "1"]
[TimeControl "40/5400+30:1800+30"]

1. e4 {[%emt 0:00:00]} c5 {[%emt 0:00:00]} 2. Nf3 {[%emt 0:00:00]} d6 {[%emt 0:00:00]} 3. Nc3 {[%emt 0:00:00]} Nf6 {[%emt 0:00:00]} 4. Be2 {[%emt 0:00:28]} g6 {[%emt 0:00:11]} 5. O-O {[%emt 0:00:08]} Bg7 {[%emt 0:00:04]} 6. d3 {[%emt 0:00:09]} O-O {[%emt 0:00:20]} 7. h3 {[%emt 0:00:27]} Nc6 {[%emt 0:00:07]} 8. Bf4 {[%emt 0:00:10]} a6 {[%emt 0:00:39]} 9. a4 {[%emt 0:00:27]} Nd4 {[%emt 0:02:15]} 10. Nxd4 {[%emt 0:00:43]} cxd4 {[%emt 0:00:13]} 11. Nb1 {[%emt 0:00:02]} Qb6 {[%emt 0:04:37]} 12. Bc1 {[%emt 0:22:39]} Be6 {[%emt 0:08:48]} 13. Na3 {[%emt 0:01:13]} Qc6 {[%emt 0:07:45]} 14. a5 {[%emt 0:05:12]} Nd7 {[%emt 0:08:00]} 15. b3 {[%emt 0:01:01]} Rfc8 {[%emt 0:03:26]} 16. Nc4 {[%emt 0:01:56]} Bxc4 {[%emt 0:03:48]} 17. bxc4 {[%emt 0:00:11]} e6 {[%emt 0:03:40]} 18. Rb1 {[%emt 0:04:11]} Rab8 {[%emt 0:00:48]} 19. Bd2 {[%emt 0:01:17]} Nc5 {[%emt 0:04:59]} 20. Bf3 {[%emt 0:08:24]} Qc7 {[%emt 0:02:08]} 21. g3 {[%emt 0:06:04]} Na4 {[%emt 0:02:21]} 22. Rb3 {[%emt 0:05:19]} Nc5 {[%emt 0:01:20]} 23. Rb1 {[%emt 0:00:11]} Na4 {[%emt 0:00:03]} 24. Rb3 {[%emt 0:00:21]} Nc5 {[%emt 0:00:05]} 25. Rb1 {[%emt 0:00:11]} Na4 {[%emt 0:00:02]} 26. Rb3 {[%emt 0:00:16]} Nc5 {[%emt 0:00:03]} 27. Rb1 Na4 28. Rb3 Nc5 {[%emt 0:00:51]} 1/2-1/2

[Event "IIFL Wealth 4th Mumbai GM"]
[Site "Mumbai"]
[Date "2019.01.06"]
[Round "8"]
[White "Md.abzid, Rahman"]
[Black "Mehdi Hasan Parag"]
[Result "0-1"]
[ECO "D38"]
[WhiteElo "2040"]
[BlackElo "2218"]
[Annotator "NA"]
[PlyCount "80"]
[EventDate "2018.12.30"]
[EventType "swiss"]
[EventCountry "IND"]
[SourceTitle "playchess.com"]
[Source "ChessBase"]
[SourceQuality "1"]
[TimeControl "40/5400+30:1800+30"]

1. d4 {[%emt 0:00:49]} Nf6 {[%emt 0:00:00]} 2. c4 {[%emt 0:00:10]} e6 {[%emt 0:00:00]} 3. Nf3 {[%emt 0:00:25]} d5 {[%emt 0:00:04]} 4. Nc3 {[%emt 0:00:11]} Bb4 {[%emt 0:00:26]} 5. Qc2 {[%emt 0:01:09]} O-O {[%emt 0:00:10]} 6. e3 {[%emt 0:01:05]} c5 {[%emt 0:01:23]} 7. dxc5 {[%emt 0:00:11]} Bxc5 {[%emt 0:01:00]} 8. a3 {[%emt 0:00:37]} Nc6 {[%emt 0:01:34]} 9. b4 {[%emt 0:00:17]} Bd6 {[%emt 0:00:53]} 10. Bb2 {[%emt 0:01:11]} Qe7 {[%emt 0:01:12]} 11. Bd3 {[%emt 0:01:16]} dxc4 {[%emt 0:00:19]} 12. Bxc4 {[%emt 0:00:05]} Bd7 {[%emt 0:05:42]} 13. Nb5 {[%emt 0:02:01]} Bb8 {[%emt 0:06:11]} 14. Ng5 {[%emt 0:03:25]} Be5 {[%emt 0:01:59]} 15. Nd4 {[%emt 0:00:28]} Nxd4 {[%emt 0:02:07]} 16. exd4 {[%emt 0:00:02]} Bf4 {[%emt 0:00:27]} 17. Ne4 {[%emt 0:05:36]} Rac8 {[%emt 0:02:31]} 18. Nxf6+ {[%emt 0:03:14]} Qxf6 {[%emt 0:00:26]} 19. Qe2 {[%emt 0:00:20]} Qh6 {[%emt 0:01:35]} 20. g3 {[%emt 0:01:27]} Bc6 {[%emt 0:00:57]} 21. O-O {[%emt 0:00:50]} a6 {[%emt 0:02:20]} 22. Bd3 {[%emt 0:02:32]} Bb8 {[%emt 0:01:45]} 23. h4 {[%emt 0:03:37]} Bd5 {[%emt 0:02:10]} 24. a4 {[%emt 0:00:23]} f5 {[%emt 0:00:28]} 25. f4 {[%emt 0:00:18]} Qf6 {[%emt 0:02:00]} 26. Kh2 {[%emt 0:01:40]} g6 {[%emt 0:02:22]} 27. b5 {[%emt 0:00:26]} a5 {[%emt 0:00:23]} 28. Ba3 {[%emt 0:01:23]} Rfd8 {[%emt 0:01:01]} 29. Bc5 {[%emt 0:00:02]} Bxf4 {[%emt 0:05:49]} 30. Kh3 {[%emt 0:17:00]} Bc7 {[%emt 0:05:01]} 31. Rac1 {[%emt 0:04:32]} b6 {[%emt 0:00:36]} 32. Ba3 {[%emt 0:00:35]} g5 {[%emt 0:04:27]} 33. Qh5 {[%emt 0:03:05]} g4+ {[%emt 0:01:14]} 34. Kh2 {[%emt 0:00:05]} Qg6 {[%emt 0:00:54]} 35. Rxf5 {[%emt 0:02:32]} exf5 {[%emt 0:00:46]} 36. Qxf5 {[%emt 0:00:02]} Qxf5 {[%emt 0:01:01]} 37. Bxf5 Bd6 38. Bxc8 {[%emt 0:04:50]} Bxa3 {[%emt 0:00:58]} 39. Rc7 {[%emt 0:00:10]} Bd6 {[%emt 0:00:38]} 40. Rc3 {[%emt 0:00:11]} h5 {[%emt 0:00:34]} 0-1